[Event "Szansa Chess Open 2022"]
[Site "Warsaw"]
[Date "2022.09.18"]
[Round "10.9"]
[White "Zochowski, Kacper"]
[Black "Goraj, Barbara"]
[Result "1-0"]
[ECO "A05"]
[WhiteElo "2257"]
[BlackElo "2121"]
[Annotator "ChessBase"]
[PlyCount "45"]
[EventDate "2022.09.17"]
[EventCountry "POL"]
[SourceTitle "playchess.com"]
[Source "ChessBase"]
[SourceQuality "1"]
[TimeControl "900+10"]

1. Nf3 {[%emt 0:00:01]} Nf6 {[%emt 0:00:02]} 2. c4 {[%emt 0:00:02]} g6 {[%emt 0:00:06]} 3. b3 {[%emt 0:00:01]} Bg7 {[%emt 0:00:02]} 4. Bb2 {[%emt 0:00:01]} d6 {[%emt 0:00:03]} 5. d4 {[%emt 0:00:01]} O-O {[%emt 0:00:07]} 6. g3 {[%emt 0:00:02]} Nbd7 {[%emt 0:00:22]} 7. Bg2 {[%emt 0:00:01]} Re8 {[%emt 0:00:56]} 8. O-O {[%emt 0:00:03]} c6 {[%emt 0:00:07]} 9. Nc3 {[%emt 0:00:12]} e5 {[%emt 0:00:21]} 10. e4 {[%emt 0:01:11]} exd4 {[%emt 0:00:10]} 11. Nxd4 {[%emt 0:00:02]} Nc5 {[%emt 0:00:01]} 12. Re1 {[%emt 0:00:47]} a5 {[%emt 0:00:17]} 13. Qd2 {[%emt 0:00:30]} Qb6 {[%emt 0:01:23]} 14. Rab1 {[%emt 0:01:39]} a4 {[%emt 0:01:08]} 15. Bc1 {[%emt 0:06:07]} axb3 {[%emt 0:00:29]} 16. axb3 {[%emt 0:00:01]} Ncxe4 {[%emt 0:03:02]} 17. Bxe4 {[%emt 0:01:24]} Nxe4 {[%emt 0:00:08]} 18. Nxe4 {[%emt 0:00:02]} Qxd4 {[%emt 0:04:59]} 19. Nf6+ {[%emt 0:00:38]} Qxf6 {[%emt 0:00:02]} 20. Rxe8+ {[%emt 0:00:01]} Bf8 {[%emt 0:00:01]} 21. Bb2 {[%emt 0:00:44]} Qf5 {[%emt 0:00:16]} 22. Rbe1 {[%emt 0:00:03]} Qh3 {[%emt 0:01:41]} 23. Rxf8+ {[%emt 0:00:04]} 1-0

[Event "Szansa Chess Open 2022"]
[Site "Warsaw"]
[Date "2022.09.18"]
[Round "10.11"]
[White "Golecki, Jan"]
[Black "Bartkiewicz, Pawel"]
[Result "0-1"]
[ECO "B13"]
[WhiteElo "2193"]
[BlackElo "1938"]
[Annotator "TA"]
[PlyCount "101"]
[EventDate "2022.09.17"]
[EventCountry "POL"]
[SourceTitle "playchess.com"]
[Source "ChessBase"]
[SourceQuality "1"]
[TimeControl "900+10"]

{[%evp 13,101,32,35,13,51,14,8,8,12,8,10,8,18,0,14,4,9,0,0,-18,7,-3,35,40,58,60,47,56,72,83,66,68,73,35,50,52,40,0,0,-62,6,-66,-66,-61,-63,-1654,-1692,-1572,-1654,-1445,-1400,-1436,-1426,-1376,-1376,-1427,-1404,-1390,-1382,-1282,-1000,-1002,-1002,-1002,-1002,-995,-964,-962,-954,-1097,-993,-1024,-1008,-5406,-5406,-5589,-2299,-2079,-2006,-29981,-29982,-29982,-29983,-29983,-29984,-29984,-29985,-29985,-29986,-29994]} 1. e4 {[%emt 0:00:02]} c6 {[%emt 0:00:01]} 2. d4 {[%emt 0:00:01]} d5 {[%emt 0:00:00]} 3. exd5 {[%emt 0:00:01]} cxd5 {[%emt 0:00:01]} 4. Bd3 {[%emt 0:00:01]} Nc6 {[%emt 0:00:01]} 5. c3 {[%emt 0:00:01]} Nf6 {[%emt 0:00:01]} 6. Bf4 {[%emt 0:00:01]} g6 {[%emt 0:00:01]} 7. Nf3 {[%emt 0:00:01]} Bf5 $1 {[%emt 0:00:01][%mdl 4] now scores much better than the old 7...Bg7.} 8. O-O {[%emt 0:00:03] B13: Caro-Kann: Exchange Variation and Panov-Botvinnik Attack.} Bg7 {[%emt 0:00:11]} 9. Re1 {[%emt 0:00:01] Threatening Bxf5.} Bxd3 {[%emt 0:00:14]} 10. Qxd3 {[%emt 0:00:02] The position is equal.} O-O 11. Nbd2 {[%emt 0:00:01]} Nh5 {[%emt 0:00:14]} 12. Bg5 {[%emt 0:01:03]} Qc7 {[%emt 0:00:12] [#]} 13. Nf1 $146 {[%emt 0:00:25]} ({Predecessor:} 13. Qe3 Rfe8 14. Bh6 Nf6 15. Bxg7 Kxg7 16. Ne5 Rab8 17. Ndf3 Ne4 18. Qf4 Nxe5 19. Nxe5 {0-1 (35) Paczka,P (1933)-Paszewski,M (2300) Katowice 2021}) 13... h6 {[%emt 0:01:23]} 14. Bd2 {[%emt 0:00:10]} Rfe8 {[%emt 0:01:45]} 15. g3 {[%emt 0:00:17]} Rad8 {[%emt 0:00:44]} 16. Ne3 {[%emt 0:00:07]} Qd7 {[%emt 0:00:57] Against Ng4} 17. Kg2 {[%emt 0:00:39]} e5 {[%emt 0:00:38]} 18. dxe5 {[%emt 0:00:06]} Nxe5 {[%emt 0:00:06]} 19. Nxe5 {[%emt 0:00:02]} Rxe5 {[%emt 0:00:11]} 20. Nc2 {[%emt 0:01:11]} Rde8 {[%emt 0:01:06]} 21. Rxe5 {[%emt 0:00:03]} Rxe5 {[%emt 0:00:02]} 22. Be3 {[%emt 0:00:01]} a6 {[%emt 0:01:37]} 23. Bd4 {[%emt 0:01:19]} Re4 {[%emt 0:00:05][%cal Oe4h4]} 24. Bxg7 {[%emt 0:00:43]} Kxg7 25. Rd1 {[%emt 0:00:07] [#] aiming for Qxe4.} Qg4 {[%emt 0:01:08] And now ...Nf4+ would win.} 26. Kh1 {[%emt 0:00:02]} ({Better is} 26. Kf1 $1 $11) 26... Re2 {[%emt 0:03:04]} (26... Qe2 $1 $15) 27. Kg1 {[%emt 0:01:20]} (27. Rd2 $11 Rxd2 28. Qxd2) 27... Nf4 $36 {[%emt 0:01:15][%cal Bh5f4,Bf4h3,Bh3f2,Bf2e4][%mdl 2080] Black has the initiative.} 28. Qd4+ {[%emt 0:00:01]} Kg8 {[%emt 0:00:01] Black has more active pieces.} 29. Ne1 $2 {[%emt 0:06:15][%mdl 8192] Now White is beyond hope.} (29. Qxf4 $15 Qxf4 30. gxf4 Rxc2 31. Rxd5) 29... Nh3+ $19 {[%emt 0:00:58]} 30. Kg2 {[%emt 0:00:07]} Rxf2+ {[%emt 0:00:13]} 31. Qxf2 {[%emt 0:00:01]} Nxf2 {[%emt 0:00:02]} 32. Rd2 {[%emt 0:00:31] Against Qe2} Ne4 {[%emt 0:00:12]} 33. Rc2 {[%emt 0:00:10]} Qd1 {[%emt 0:00:04]} 34. Kf1 {[%emt 0:00:01]} Nd2+ {[%emt 0:00:55]} 35. Kf2 {[%emt 0:00:01] [#]} Nf3 $1 {[%emt 0:00:30]} 36. Re2 {[%emt 0:00:02]} Nxe1 {[%emt 0:00:03]} 37. Rxe1 {[%emt 0:00:01][%mdl 4096] Endgame KQ-KR} Qc2+ {[%emt 0:00:15]} 38. Re2 {[%emt 0:00:01]} Qb1 {[%emt 0:00:02]} 39. a3 {[%emt 0:00:01]} Kg7 {[%emt 0:00:14]} 40. Ke3 {[%emt 0:00:01]} h5 {[%emt 0:00:11]} 41. Rd2 {[%emt 0:00:12]} Qe4+ {[%emt 0:00:07]} 42. Kf2 {[%emt 0:00:00]} g5 {[%emt 0:00:04]} 43. Rd4 {[%emt 0:00:01]} Qc2+ {[%emt 0:00:03]} 44. Ke3 {[%emt 0:00:01]} Qxb2 {[%emt 0:00:02]} 45. Rxd5 {[%emt 0:00:01]} Qxc3+ {[%emt 0:00:01]} 46. Rd3 {[%emt 0:00:01]} Qe5+ {[%emt 0:00:04] Black mates.} 47. Kd2 {[%emt 0:00:04]} Qb2+ {[%emt 0:00:03]} 48. Ke3 {[%emt 0:00:01]} Qxh2 {[%emt 0:00:01]} 49. Kd4 {[%emt 0:00:07]} h4 {[%emt 0:00:07]} 50. gxh4 {[%emt 0:00:02]} gxh4 {[%emt 0:00:01]} 51. Rg3+ {[%emt 0:00:02] Weighted Error Value: White=0.28 (precise) /Black=0.25 (precise)} 0-1

[Event "Szansa Chess Open 2022"]
[Site "Warsaw"]
[Date "2022.09.18"]
[Round "10.12"]
[White "Khamidov, Abdulla"]
[Black "Janeczko, Jakub"]
[Result "1/2-1/2"]
[ECO "B40"]
[WhiteElo "1804"]
[BlackElo "2159"]
[Annotator "TA"]
[PlyCount "109"]
[EventDate "2022.09.17"]
[EventCountry "POL"]
[SourceTitle "playchess.com"]
[Source "ChessBase"]
[SourceQuality "1"]
[TimeControl "900+10"]

{[%evp 13,109,6,16,-35,5,-1,0,0,-4,-33,0,-12,65,68,64,64,67,63,64,65,59,21,25,31,24,0,0,0,0,0,0,0,19,19,17,25,10,0,0,0,50,48,51,0,0,0,0,0,0,0,0,0,0,0,0,0,0,0,0,0,0,0,0,0,0,0,0,0,0,-22,-11,-120,-120,-121,-116,-108,-139,-206,-206,-189,0,0,0,0,0,0,0,0,0,0,0,0,0,0,0,0,0,0]} 1. e4 {[%emt 0:00:01]} c5 {[%emt 0:00:01]} 2. Nf3 {[%emt 0:00:01]} e6 {[%emt 0:00:02]} 3. c3 {[%emt 0:00:07]} Nf6 {[%emt 0:00:06][%cal Bg8f6,Bf6d5,Bd5b6][%mdl 32]} 4. e5 {[%emt 0:00:01]} Nd5 {[%emt 0:00:02]} 5. d4 {[%emt 0:00:01]} cxd4 {[%emt 0:00:05]} 6. cxd4 {[%emt 0:00:01]} Nc6 {[%emt 0:00:01]} 7. Nc3 {[%emt 0:00:01]} d6 {[%emt 0:00:06]} 8. Bc4 {[%emt 0:00:03] B22: Sicilian: 2 c3.} (8. Nxd5 $11 exd5 9. Bd3) 8... Nb6 {[%emt 0:00:25]} 9. Bb3 {[%emt 0:00:01]} dxe5 {[%emt 0:00:07]} 10. dxe5 {[%emt 0:00:01]} Qxd1+ {[%emt 0:00:02]} 11. Kxd1 {[%emt 0:00:01]} Bc5 {[%emt 0:00:35]} 12. Ne4 {[%emt 0:00:23] [#]} Bd4 $146 {[%emt 0:00:34]} (12... Be7 $11) ({Predecessor:} 12... Be7 13. Be3 O-O 14. Ke2 Nd7 15. Bf4 Nc5 16. Nxc5 Bxc5 17. Rhd1 b6 18. Bc4 Bb7 19. a3 Rfd8 {1-0 (58) Gibbs,D (1993)-Lawrence,S (1720) Daventry 2022}) 13. Nd6+ $14 {[%emt 0:00:09]} Ke7 {[%emt 0:00:02]} 14. Nxd4 {[%emt 0:00:03] White is more active.} Nxd4 {[%emt 0:00:02]} 15. Be3 {[%emt 0:00:17]} Nxb3 {[%emt 0:00:01]} 16. axb3 {[%emt 0:00:01]} Nd5 {[%emt 0:00:14]} 17. Bc5 {[%emt 0:00:10]} b6 $1 {[%emt 0:00:47]} 18. Nxc8+ {[%emt 0:01:02]} Kd7 {[%emt 0:00:00]} 19. Rxa7+ {[%emt 0:00:31]} Rxa7 {[%emt 0:00:04]} 20. Nxa7 {[%emt 0:00:02][%cal Bc8a7,Ba7b5,Bb5d6,Bd6e4][%mdl 32]} bxc5 $11 {[%emt 0:00:01][%mdl 4096] Endgame KRN-KRN} 21. Nb5 $1 {[%emt 0:00:16]} Rb8 {[%emt 0:00:05]} 22. Nd6 {[%emt 0:00:03]} f6 {[%emt 0:00:05]} 23. Ne4 {[%emt 0:00:14]} Kc6 {[%emt 0:00:04]} 24. exf6 {[%emt 0:00:06]} gxf6 {[%emt 0:00:01]} 25. Kc2 {[%emt 0:00:05]} Nb4+ {[%emt 0:00:11]} 26. Kd2 {[%emt 0:00:06]} Nd5 {[%emt 0:00:03]} (26... f5 $11 27. Ng5 e5) 27. Rc1 $14 {[%emt 0:00:05]} Rb5 {[%emt 0:00:29]} 28. b4 {[%emt 0:00:14]} (28. Ke2 $14) 28... Rxb4 $11 {[%emt 0:00:08]} 29. Nxc5 {[%emt 0:00:33]} ({Don't play} 29. Rxc5+ Kb6 30. Rxd5 exd5 31. Nxf6 Kc5 $17) 29... Rxb2+ {[%emt 0:00:03]} 30. Ke1 {[%emt 0:00:01]} Kd6 {[%emt 0:00:09]} 31. Nd3 {[%emt 0:00:17]} Ra2 {[%emt 0:00:05]} 32. g3 {[%emt 0:00:49]} e5 {[%emt 0:02:12][%cal Be6e5,Be5e4][%mdl 32]} 33. Kf1 {[%emt 0:00:44]} e4 {[%emt 0:00:36]} 34. Ne1 {[%emt 0:01:25]} f5 {[%emt 0:01:14]} 35. Ng2 {[%emt 0:00:16]} Ke5 {[%emt 0:00:03]} 36. Re1 {[%emt 0:01:18]} Nb4 {[%emt 0:02:30]} 37. Nf4 {[%emt 0:00:08] Against Nd3} Kd4 {[%emt 0:00:36]} 38. Ne2+ {[%emt 0:00:26]} Ke5 {[%emt 0:00:23]} 39. Nf4 {[%emt 0:00:22]} Kd4 {[%emt 0:00:03]} 40. Re2 {[%emt 0:00:48]} Ra1+ {[%emt 0:00:22]} 41. Kg2 {[%emt 0:00:01]} Nd3 {[%emt 0:00:02]} 42. Ne6+ {[%emt 0:01:13]} (42. Kh3 $11 {remains equal.}) 42... Ke5 $17 {[%emt 0:00:27]} 43. Ng5 {[%emt 0:00:02]} Ne1+ $1 {[%emt 0:03:16]} 44. Kh3 {[%emt 0:00:02]} h6 $1 {[%emt 0:00:01]} 45. Nf7+ {[%emt 0:00:02] [#]} (45. Nh7 $17) 45... Kf6 $1 $19 {[%emt 0:00:02]} 46. Nxh6 {[%emt 0:02:23] [#]} Nf3 $2 {[%emt 0:00:02]} (46... Kg6 $1 $19 {[%cal Rg6h6]} 47. Ng8 Kg5 48. Rxe1 Rxe1) 47. Rb2 $11 {[%emt 0:01:03] The position is equal.} Rh1 {[%emt 0:02:41][%csl Gf3][%cal Rh1h2]} 48. Rb6+ {[%emt 0:00:02]} Ke5 {[%emt 0:00:08][%csl Gf3][%cal Rh1h2]} 49. Rb5+ {[%emt 0:01:00]} Ke6 {[%emt 0:00:36][%csl Gf3][%cal Rh1h2]} 50. Nxf5 {[%emt 0:00:18] Hoping for g4.} Rxh2+ {[%emt 0:00:06]} 51. Kg4 {[%emt 0:00:01]} Rxf2 {[%emt 0:00:25] ( -> ...Ne5+)} 52. Rb6+ {[%emt 0:01:13]} Ke5 {[%emt 0:00:17] White must now prevent ...Nh2+.} 53. Rb5+ {[%emt 0:00:01]} Ke6 {[%emt 0:00:01] ...Ne5+ is the strong threat.} 54. Rb6+ {[%emt 0:00:19]} Kd5 {[%emt 0:00:52]} 55. Rb5+ {[%emt 0:00:48] Weighted Error Value: White=0.13 (very precise) /Black=0.10 (very precise)} 1/2-1/2

[Event "Szansa Chess Open 2022"]
[Site "Warsaw"]
[Date "2022.09.18"]
[Round "10.13"]
[White "Kulesza, Andrzej"]
[Black "Fiszer, Bartosz"]
[Result "1/2-1/2"]
[ECO "B32"]
[WhiteElo "2014"]
[BlackElo "2232"]
[Annotator "TA"]
[PlyCount "131"]
[EventDate "2022.09.17"]
[EventCountry "POL"]
[SourceTitle "playchess.com"]
[Source "ChessBase"]
[SourceQuality "1"]
[TimeControl "900+10"]

{[%evp 14,131,35,37,31,50,44,20,25,0,38,32,43,19,54,27,14,-44,20,22,17,0,56,51,58,55,67,56,51,55,63,47,56,22,61,40,56,49,64,48,45,0,47,20,34,34,32,16,20,0,0,0,0,0,0,0,0,0,9,9,10,8,8,8,14,9,14,24,36,35,64,72,90,-21,-26,-191,0,0,0,0,0,0,0,0,4,0,0,0,0,-122,-78,-50,-16,-16,-11,-10,0,0,0,-14,0,0,0,0,0,0,0,0,0,0,0,0,0,0,0,0,0,0,0,0]} 1. e4 {[%emt 0:00:03]} c5 {[%emt 0:00:01]} 2. Nf3 {[%emt 0:00:01]} Nc6 {[%emt 0:00:01]} 3. d4 {[%emt 0:00:02]} cxd4 {[%emt 0:00:02]} 4. Nxd4 {[%emt 0:00:01]} e5 {[%emt 0:00:01]} 5. Nb5 {[%emt 0:00:01]} d6 {[%emt 0:00:01]} 6. N1c3 {[%emt 0:00:04]} a6 {[%emt 0:00:01]} 7. Na3 {[%emt 0:00:01]} Be7 {[%emt 0:00:01]} 8. Nc4 {[%emt 0:00:12]} b5 {[%emt 0:00:02] B32: Sicilian: Löwenthal and Kalashnikov Variations.} 9. Ne3 {[%emt 0:00:02]} Nf6 {[%emt 0:00:03]} 10. Ned5 {[%emt 0:00:02]} O-O {[%emt 0:00:30]} 11. Be3 {[#]} Ng4 $146 {[%emt 0:00:46]} ({Predecessor:} 11... Nxd5 12. Nxd5 Bg5 13. Bb6 Qd7 14. h4 Bd8 15. a4 bxa4 16. Bxd8 Qxd8 17. Rxa4 Bd7 {1-0 (62) Shahil,D (2369)-Tarun,K (2388) Cattolica 2022}) 12. Bb6 {[%emt 0:00:17]} Qd7 {[%emt 0:00:43]} 13. f3 {[%emt 0:00:18]} b4 {[%emt 0:00:20]} 14. fxg4 {[%emt 0:01:05] Black must now prevent Na4.} (14. Na4 {looks sharper.} Nf6 15. Bf2 Qb7 16. Nxe7+ Qxe7 17. Nb6) 14... bxc3 {[%emt 0:00:07]} 15. Nxc3 {[%emt 0:00:03]} ({Better is} 15. bxc3 $11 Qxg4 16. Qxg4 Bxg4 17. Be2 Bxe2 18. Kxe2) 15... Qxg4 {[%emt 0:00:33]} ({Black should try} 15... Rb8 $15 16. Nd5 Nb4 $1 17. Nxe7+ (17. Bc7 Nxd5 18. Bxb8 Nf6 $17) 17... Qxe7) 16. Qxg4 $11 {[%emt 0:00:18]} Bxg4 {[%emt 0:00:02]} 17. Be2 {[%emt 0:00:06]} Rfb8 {[%emt 0:02:17]} (17... Be6 $11) 18. Bc7 {[%emt 0:00:21]} Rb7 {[%emt 0:01:26] Strongly threatening ...Be6.} 19. Bxg4 {[%emt 0:00:25]} Rxc7 {[%emt 0:00:05]} 20. Nd5 {[%emt 0:00:10]} Rb7 {[%emt 0:00:04]} 21. Nxe7+ {[%emt 0:01:09]} Nxe7 {[%emt 0:01:24]} 22. O-O-O {[%emt 0:00:07]} Rd8 {[%emt 0:00:21]} 23. Rd2 {[%emt 0:00:18]} g6 {[%emt 0:00:43]} 24. Bf3 {[%emt 0:00:22]} Rb6 {[%emt 0:01:36]} 25. g4 {[%emt 0:00:02]} Kg7 {[%emt 0:01:08]} 26. Rhd1 {[%emt 0:00:06]} h6 {[%emt 0:01:24]} 27. c4 {[%emt 0:00:43]} Rc6 {[%emt 0:00:53]} (27... a5 $11) 28. b3 {[%emt 0:00:01]} Kf6 {[%emt 0:00:24]} 29. Kb2 {[%emt 0:00:08]} Ke6 {[%emt 0:00:10]} 30. Kc3 {[%emt 0:00:34]} Rc7 {[%emt 0:00:43]} 31. b4 {[%emt 0:01:27][%cal Oc4c5]} Nc6 {[%emt 0:00:15]} 32. Rd5 {[%emt 0:00:18]} Nd4 {[%emt 0:00:15]} 33. Bg2 {[%emt 0:00:36]} Ne2+ {[%emt 0:00:57]} 34. Kb3 $1 {[%emt 0:00:02]} Nd4+ {[%emt 0:00:17]} 35. Kc3 $1 {[%emt 0:00:27]} Rb8 {[%emt 0:02:55]} 36. Bf1 {[%emt 0:00:29]} f6 {[%emt 0:00:24]} 37. a3 {[%emt 0:00:06]} Rc6 $132 {[%emt 0:00:12][%mdl 2048] Black is not keeping still} 38. Bd3 {[%emt 0:01:08]} Nb5+ {[%emt 0:00:09]} 39. Kb2 {[%emt 0:00:11]} Nd4 {[%emt 0:00:13]} 40. Rc1 {[%emt 0:00:30]} Rbc8 {[%emt 0:00:07]} 41. Ra5 {[%emt 0:00:20]} Ke7 {[%emt 0:00:07]} 42. c5 {[%emt 0:00:16]} dxc5 {[%emt 0:00:03]} 43. Rcxc5 {[%emt 0:00:02]} ({White has to play} 43. Bxa6 $16 R8c7 44. Raxc5 (44. Rcxc5 Rxc5 45. Rxc5 Rxc5 $16)) 43... Rxc5 44. bxc5 $16 {[%emt 0:00:13][%mdl 4096] Endgame KRB-KRN} (44. Rxc5 $11 {and White has nothing to worry.} Rxc5 45. bxc5) 44... Ne6 $2 {[%emt 0:00:15]} (44... Rb8+ $19 45. Kc3 Rb3+ 46. Kc4 {[#]} Rxd3 $1 {[%mdl 512]} 47. Rxa6 (47. Kxd3 $2 {too greedy.} Nb3 $19) 47... Re3 48. Ra7+ Kd8 49. Ra8+ Kc7 50. Ra7+ Kb8) 45. Rxa6 $11 {[%emt 0:00:23]} Nxc5 {[%emt 0:00:25]} 46. Ra7+ {[%emt 0:00:01]} Kd6 {[%emt 0:00:04]} 47. Bc2 {[%emt 0:00:08]} Ne6 {[%emt 0:00:17]} 48. Rf7 {[%emt 0:01:33]} Rf8 {[%emt 0:00:08]} 49. Rb7 {[%emt 0:00:08]} Nd4 {[%emt 0:00:08]} 50. Bd3 {[%emt 0:00:26]} f5 {[%emt 0:00:14]} 51. Rb6+ {[%emt 0:01:26]} (51. gxf5 $11 gxf5 52. exf5) 51... Kc5 $17 {[%emt 0:00:07]} 52. Rxg6 {[%emt 0:00:02][%cal Rg4f5]} fxe4 {[%emt 0:00:02]} 53. Bxe4 {[%emt 0:00:16] The position is equal.} Rf2+ {[%emt 0:00:02]} 54. Kc3 {[%emt 0:00:32]} Rxh2 {[%emt 0:00:01]} 55. Bd3 {[%emt 0:00:42]} Rh3 {[%emt 0:00:26]} 56. Kd2 {[%emt 0:00:32]} Kd5 {[%emt 0:00:15] Threatens to win with ...e4.} 57. Rg8 {[%emt 0:00:19]} Rh2+ {[%emt 0:00:11]} 58. Ke3 {[%emt 0:00:34]} Rh3+ {[%emt 0:00:08]} 59. Kd2 {[%emt 0:00:02]} Nf3+ {[%emt 0:00:13]} 60. Ke2 {[%emt 0:00:22]} Nd4+ {[%emt 0:00:09]} 61. Kd2 {[%emt 0:00:01]} Rg3 {[%emt 0:00:14]} 62. a4 {[%emt 0:00:37]} Rg2+ {[%emt 0:00:09]} 63. Ke3 {[%emt 0:00:11] aiming for Be4+.} Rg3+ {[%emt 0:00:10]} 64. Kd2 {[%emt 0:00:01]} Nc6 {[%emt 0:00:08]} 65. Bb5 {[%emt 0:00:29]} Nd4 {[%emt 0:00:11]} 66. Bd3 {[%emt 0:00:09] Weighted Error Value: White=0.19 (very precise) /Black=0.14 (very precise)} 1/2-1/2